[Event "Paul Kerese Mälestusfestival 2022 Välkturniir"]
[Site "Paul Kerese Mälestusfestival 2022 Kiirturniir"]
[Date "????.??.??"]
[Round "10.7"]
[White "Teelem, Lauri"]
[Black "Zarovs, Aleksandrs"]
[Result "1-0"]
[TimeControl "3 min + 2 sek iga käigu eest"]
[WhiteElo "2012"]
[BlackElo "1527"]

1. d4 {[%clk 00:03:02]} {[%emt 00:00:02]} Nf6 {[%clk 00:03:03]} {[%emt
00:00:01]} 2. c4 {[%clk 00:03:03]} {[%emt 00:00:02]} e6 {[%clk 00:03:04]} 3.
Nc3 {[%clk 00:03:03]} {[%emt 00:00:01]} Bb4 {[%clk 00:03:05]} {[%emt 00:00:01]}
4. a3 {[%clk 00:03:05]} Bxc3+ {[%clk 00:02:58]} {[%emt 00:00:09]} 5. bxc3
{[%clk 00:03:06]} {[%emt 00:00:01]} d5 {[%clk 00:02:47]} {[%emt 00:00:13]} 6.
e3 {[%clk 00:03:06]} {[%emt 00:00:01]} O-O {[%clk 00:02:47]} {[%emt 00:00:02]}
7. Bd3 {[%clk 00:03:06]} {[%emt 00:00:02]} b6 {[%clk 00:02:47]} {[%emt
00:00:01]} 8. Ne2 {[%clk 00:03:06]} {[%emt 00:00:02]} Bb7 {[%clk 00:02:48]}
{[%emt 00:00:01]} 9. O-O {[%clk 00:03:05]} {[%emt 00:00:04]} Nbd7 {[%clk
00:02:49]} {[%emt 00:00:01]} 10. cxd5 {[%clk 00:03:03]} {[%emt 00:00:04]} exd5
{[%clk 00:02:48]} {[%emt 00:00:02]} 11. Ng3 {[%clk 00:03:03]} {[%emt 00:00:02]}
c5 {[%clk 00:02:48]} {[%emt 00:00:03]} 12. f3 {[%clk 00:03:03]} {[%emt
00:00:02]} Rc8 {[%clk 00:02:44]} {[%emt 00:00:06]} 13. Ra2 {[%clk 00:03:02]}
{[%emt 00:00:02]} Re8 {[%clk 00:02:42]} {[%emt 00:00:03]} 14. Re2 {[%clk
00:02:55]} {[%emt 00:00:09]} cxd4 {[%clk 00:02:29]} {[%emt 00:00:16]} 15. cxd4
{[%clk 00:02:55]} {[%emt 00:00:02]} g6 {[%clk 00:02:21]} {[%emt 00:00:10]} 16.
e4 {[%clk 00:02:51]} {[%emt 00:00:06]} dxe4 {[%clk 00:02:18]} {[%emt 00:00:06]}
17. fxe4 {[%clk 00:02:52]} Qe7 {[%clk 00:02:10]} {[%emt 00:00:09]} 18. Bg5
{[%clk 00:02:49]} {[%emt 00:00:05]} Qe6 {[%clk 00:01:52]} {[%emt 00:00:20]} 19.
d5 {[%clk 00:02:17]} {[%emt 00:00:34]} Qd6 {[%clk 00:01:48]} {[%emt 00:00:06]}
20. Ref2 {[%clk 00:02:09]} {[%emt 00:00:10]} Qc5 {[%clk 00:01:33]} {[%emt
00:00:18]} 21. Kh1 {[%clk 00:01:56]} {[%emt 00:00:15]} 1-0

[Event "Paul Kerese Mälestusfestival 2022 Välkturniir"]
[Site "Paul Kerese Mälestusfestival 2022 Kiirturniir"]
[Date "????.??.??"]
[Round "10.8"]
[White "Heinmets, Tõnu"]
[Black "Rezniks, Roberts"]
[Result "1-0"]
[TimeControl "3 min + 2 sek iga käigu eest"]
[WhiteElo "1939"]
[BlackElo "1433"]

1. Nf3 {[%clk 00:03:03]} {[%emt 00:00:01]} d5 {[%clk 00:03:03]} {[%emt
00:00:01]} 2. d3 {[%clk 00:03:03]} {[%emt 00:00:02]} c5 {[%clk 00:03:00]}
{[%emt 00:00:05]} 3. g3 {[%clk 00:03:03]} {[%emt 00:00:02]} Nc6 {[%clk
00:03:01]} 4. Bg2 {[%clk 00:03:04]} e5 {[%clk 00:03:02]} {[%emt 00:00:01]} 5.
O-O {[%clk 00:03:02]} {[%emt 00:00:04]} Nf6 {[%clk 00:03:03]} {[%emt 00:00:01]}
6. e4 {[%clk 00:03:00]} {[%emt 00:00:04]} d4 {[%clk 00:03:03]} {[%emt
00:00:02]} 7. a4 {[%clk 00:02:59]} {[%emt 00:00:04]} Be6 {[%clk 00:03:03]}
{[%emt 00:00:01]} 8. Ng5 {[%clk 00:02:58]} {[%emt 00:00:03]} Bg4 {[%clk
00:03:00]} {[%emt 00:00:05]} 9. f3 {[%clk 00:02:59]} {[%emt 00:00:01]} Bd7
{[%clk 00:03:00]} {[%emt 00:00:02]} 10. f4 {[%clk 00:02:53]} {[%emt 00:00:07]}
h6 {[%clk 00:03:00]} {[%emt 00:00:02]} 11. Nf3 {[%clk 00:02:37]} {[%emt
00:00:18]} Bg4 {[%clk 00:03:00]} {[%emt 00:00:02]} 12. Nbd2 {[%clk 00:02:32]}
{[%emt 00:00:07]} Qd7 {[%clk 00:02:51]} {[%emt 00:00:11]} 13. fxe5 {[%clk
00:02:19]} {[%emt 00:00:15]} Nh5 {[%clk 00:02:07]} {[%emt 00:00:45]} 14. Nc4
{[%clk 00:02:13]} {[%emt 00:00:08]} O-O-O {[%clk 00:01:40]} {[%emt 00:00:29]}
15. Rf2 {[%clk 00:02:07]} {[%emt 00:00:08]} Bh3 {[%clk 00:01:28]} {[%emt
00:00:13]} 16. Bh1 {[%clk 00:02:07]} {[%emt 00:00:02]} g5 {[%clk 00:01:29]}
{[%emt 00:00:02]} 17. Nxd4 {[%clk 00:01:33]} {[%emt 00:00:36]} Nxd4 {[%clk
00:01:12]} {[%emt 00:00:19]} 18. Qxh5 {[%clk 00:01:30]} {[%emt 00:00:05]} Bg4
{[%clk 00:01:09]} {[%emt 00:00:05]} 19. Qxf7 {[%clk 00:01:30]} {[%emt
00:00:02]} Be7 {[%clk 00:00:32]} {[%emt 00:00:38]} 20. Nd6+ {[%clk 00:01:04]}
{[%emt 00:00:28]} Kb8 {[%clk 00:00:20]} {[%emt 00:00:14]} 21. Qd5 {[%clk
00:00:57]} {[%emt 00:00:09]} Bxd6 {[%clk 00:00:21]} {[%emt 00:00:01]} 22. Qxd6+
{[%clk 00:00:55]} {[%emt 00:00:03]} Qxd6 {[%clk 00:00:22]} {[%emt 00:00:02]} 23.
exd6 {[%clk 00:00:56]} {[%emt 00:00:01]} Rxd6 {[%clk 00:00:23]} 24. Kf1 {[%clk
00:00:34]} {[%emt 00:00:25]} Re8 {[%clk 00:00:19]} {[%emt 00:00:05]} 25. Be3
{[%clk 00:00:32]} {[%emt 00:00:04]} Ne6 {[%clk 00:00:18]} {[%emt 00:00:03]} 26.
Bg2 {[%clk 00:00:31]} {[%emt 00:00:03]} h5 {[%clk 00:00:10]} {[%emt 00:00:10]}
27. h3 {[%clk 00:00:31]} {[%emt 00:00:02]} 1-0

[Event "Paul Kerese Mälestusfestival 2022 Välkturniir"]
[Site "Paul Kerese Mälestusfestival 2022 Kiirturniir"]
[Date "????.??.??"]
[Round "11.1"]
[White "Protassov, Vlad"]
[Black "Agrest, Evgenij"]
[Result "1/2-1/2"]
[TimeControl "3 min + 2 sek iga käigu eest"]
[BlackTitle "GM"]
[WhiteElo "1816"]
[BlackElo "2574"]

1. d4 {[%clk 00:03:03]} {[%emt 00:07:12]} d5 {[%clk 00:03:03]} {[%emt
00:00:02]} 2. c4 {[%clk 00:03:04]} {[%emt 00:00:01]} c6 {[%clk 00:03:04]} 3.
Nc3 {[%clk 00:03:05]} Nf6 {[%clk 00:03:05]} {[%emt 00:00:01]} 4. Nf3 {[%clk
00:03:06]} e6 {[%clk 00:03:06]} {[%emt 00:00:01]} 5. g3 {[%clk 00:03:08]} Nbd7
{[%clk 00:03:04]} {[%emt 00:00:04]} 6. Bg2 {[%clk 00:03:09]} Bb4 {[%clk
00:03:02]} {[%emt 00:00:04]} 7. Nd2 {[%clk 00:03:03]} {[%emt 00:00:07]} O-O
{[%clk 00:02:57]} {[%emt 00:00:07]} 8. O-O {[%clk 00:03:03]} {[%emt 00:00:02]}
a5 {[%clk 00:02:36]} {[%emt 00:00:24]} 9. Qb3 {[%clk 00:02:41]} {[%emt
00:00:24]} Re8 {[%clk 00:02:26]} {[%emt 00:00:12]} 10. e4 {[%clk 00:02:07]}
{[%emt 00:00:36]} dxc4 {[%clk 00:02:23]} {[%emt 00:00:06]} 11. Nxc4 {[%clk
00:02:00]} {[%emt 00:00:08]} b5 {[%clk 00:02:22]} {[%emt 00:00:03]} 12. Ne3
{[%clk 00:01:17]} {[%emt 00:00:46]} Ba6 {[%clk 00:02:22]} {[%emt 00:00:02]} 13.
Rd1 {[%clk 00:01:15]} {[%emt 00:00:04]} Qb6 {[%clk 00:02:19]} {[%emt 00:00:05]}
14. a3 {[%clk 00:01:05]} {[%emt 00:00:12]} Bf8 {[%clk 00:02:16]} {[%emt
00:00:04]} 15. d5 {[%clk 00:00:43]} {[%emt 00:00:25]} exd5 {[%clk 00:02:13]}
{[%emt 00:00:05]} 16. exd5 {[%clk 00:00:41]} {[%emt 00:00:03]} c5 {[%clk
00:02:14]} 17. d6 {[%clk 00:00:28]} {[%emt 00:00:15]} c4 {[%clk 00:02:10]}
{[%emt 00:00:07]} 18. Qc2 {[%clk 00:00:26]} {[%emt 00:00:03]} Rad8 {[%clk
00:02:03]} {[%emt 00:00:08]} 19. Ned5 {[%clk 00:00:22]} {[%emt 00:00:07]} Qxd6
{[%clk 00:01:57]} {[%emt 00:00:08]} 20. Bf4 {[%clk 00:00:19]} {[%emt 00:00:06]}
Ne5 {[%clk 00:01:58]} {[%emt 00:00:01]} 21. Nb4 {[%clk 00:00:07]} {[%emt
00:00:14]} Qe6 {[%clk 00:01:49]} {[%emt 00:00:11]} 22. Rxd8 {[%clk 00:00:07]}
{[%emt 00:00:02]} Rxd8 {[%clk 00:01:48]} {[%emt 00:00:03]} 23. Nxa6 {[%clk
00:00:08]} {[%emt 00:00:01]} Nd3 {[%clk 00:01:47]} {[%emt 00:00:03]} 24. Nc7
{[%clk 00:00:05]} {[%emt 00:00:05]} 1/2-1/2

[Event "Paul Kerese Mälestusfestival 2022 Välkturniir"]
[Site "Paul Kerese Mälestusfestival 2022 Kiirturniir"]
[Date "????.??.??"]
[Round "11.2"]
[White "Maiorov, Nikita"]
[Black "Krilovs, Nikolajs"]
[Result "0-1"]
[TimeControl "3 min + 2 sek iga käigu eest"]
[WhiteTitle "GM"]
[WhiteElo "2417"]
[BlackElo "1971"]

1. d4 {[%clk 00:03:03]} Nf6 {[%clk 00:03:02]} {[%emt 00:00:02]} 2. c4 {[%clk
00:03:04]} {[%emt 00:00:01]} e6 {[%clk 00:02:59]} {[%emt 00:00:05]} 3. Nf3
{[%clk 00:03:04]} {[%emt 00:00:02]} b6 {[%clk 00:03:00]} {[%emt 00:00:02]} 4.
g3 {[%clk 00:03:04]} {[%emt 00:00:01]} Bb7 {[%clk 00:03:00]} {[%emt 00:00:02]}
5. Bg2 {[%clk 00:03:05]} {[%emt 00:00:01]} Bb4+ {[%clk 00:02:56]} {[%emt
00:00:06]} 6. Bd2 {[%clk 00:03:05]} {[%emt 00:00:01]} Be7 {[%clk 00:02:57]}
{[%emt 00:00:02]} 7. O-O {[%clk 00:03:04]} {[%emt 00:00:02]} O-O {[%clk
00:02:56]} {[%emt 00:00:03]} 8. Nc3 {[%clk 00:03:00]} {[%emt 00:00:06]} c5
{[%clk 00:02:51]} {[%emt 00:00:08]} 9. d5 {[%clk 00:02:59]} {[%emt 00:00:03]}
exd5 {[%clk 00:02:44]} {[%emt 00:00:09]} 10. Nh4 {[%clk 00:02:31]} {[%emt
00:00:30]} Ne4 {[%clk 00:02:36]} {[%emt 00:00:10]} 11. Nf5 {[%clk 00:02:32]} g6
{[%clk 00:01:58]} {[%emt 00:00:41]} 12. Nxe7+ {[%clk 00:02:21]} {[%emt
00:00:13]} Qxe7 {[%clk 00:01:58]} {[%emt 00:00:02]} 13. cxd5 {[%clk 00:02:11]}
{[%emt 00:00:12]} Nxd2 {[%clk 00:01:58]} {[%emt 00:00:02]} 14. d6 {[%clk
00:02:04]} {[%emt 00:00:10]} Qxd6 {[%clk 00:01:43]} {[%emt 00:00:17]} 15. Bxb7
{[%clk 00:02:04]} {[%emt 00:00:02]} Nc6 {[%clk 00:01:40]} {[%emt 00:00:05]} 16.
Bxa8 {[%clk 00:02:00]} {[%emt 00:00:06]} Rxa8 {[%clk 00:01:40]} {[%emt
00:00:02]} 17. Nb5 {[%clk 00:01:50]} {[%emt 00:00:12]} Qd5 {[%clk 00:01:02]}
{[%emt 00:00:39]} 18. Nc7 {[%clk 00:01:46]} {[%emt 00:00:06]} Qd6 {[%clk
00:01:03]} {[%emt 00:00:01]} 19. Nxa8 {[%clk 00:01:45]} {[%emt 00:00:03]} Ne5
{[%clk 00:01:03]} {[%emt 00:00:02]} 20. Rc1 {[%clk 00:01:30]} {[%emt 00:00:16]}
Qd5 {[%clk 00:00:56]} {[%emt 00:00:09]} 21. Nc7 {[%clk 00:01:23]} {[%emt
00:00:09]} Nef3+ {[%clk 00:00:38]} {[%emt 00:00:20]} 22. exf3 {[%clk 00:01:23]}
{[%emt 00:00:02]} Nxf3+ {[%clk 00:00:38]} {[%emt 00:00:01]} 23. Kh1 {[%clk
00:01:21]} {[%emt 00:00:04]} Qc6 {[%clk 00:00:37]} {[%emt 00:00:03]} 24. Qd5
{[%clk 00:01:20]} {[%emt 00:00:02]} 0-1

[Event "Paul Kerese Mälestusfestival 2022 Välkturniir"]
[Site "Paul Kerese Mälestusfestival 2022 Kiirturniir"]
[Date "????.??.??"]
[Round "11.3"]
[White "Chukavin, Kirill"]
[Black "Heinmets, Tõnu"]
[Result "1-0"]
[TimeControl "3 min + 2 sek iga käigu eest"]
[WhiteTitle "FM"]
[WhiteElo "2280"]
[BlackElo "1939"]

1. e4 {[%clk 00:03:03]} d6 {[%clk 00:03:04]} 2. d4 {[%clk 00:03:04]} Nf6 {[%clk
00:03:05]} {[%emt 00:00:02]} 3. Nc3 {[%clk 00:03:05]} e5 {[%clk 00:03:06]}
{[%emt 00:00:02]} 4. Nf3 {[%clk 00:03:06]} Nbd7 {[%clk 00:03:07]} 5. Bc4 {[%clk
00:03:07]} {[%emt 00:00:01]} Be7 {[%clk 00:03:09]} 6. O-O {[%clk 00:03:08]}
{[%emt 00:00:02]} O-O {[%emt 00:00:02]} 7. Re1 Re8 {[%clk 00:03:10]} {[%emt
00:00:01]} 8. Bxf7+ {[%clk 00:03:02]} {[%emt 00:00:09]} Kh8 {[%clk 00:02:47]}
{[%emt 00:00:25]} 9. Bxe8 {[%clk 00:02:52]} {[%emt 00:00:12]} Qxe8 {[%clk
00:02:48]} {[%emt 00:00:01]} 10. Bg5 {[%clk 00:02:46]} {[%emt 00:00:08]} c6
{[%clk 00:02:40]} {[%emt 00:00:10]} 11. Qd2 {[%clk 00:02:38]} {[%emt 00:00:10]}
Qg6 {[%clk 00:02:37]} {[%emt 00:00:04]} 12. Nh4 {[%clk 00:02:32]} {[%emt
00:00:08]} Qf7 {[%clk 00:02:39]} {[%emt 00:00:01]} 13. Nf5 {[%clk 00:02:31]}
{[%emt 00:00:03]} Bf8 {[%clk 00:02:40]} 14. Rad1 {[%clk 00:02:20]} {[%emt
00:00:13]} Nb6 {[%clk 00:02:06]} {[%emt 00:00:36]} 15. dxe5 {[%clk 00:02:04]}
{[%emt 00:00:18]} dxe5 {[%clk 00:02:07]} 16. Nd6 {[%clk 00:01:58]} {[%emt
00:00:08]} Qg6 {[%clk 00:02:08]} {[%emt 00:00:01]} 17. Nxc8 {[%clk 00:01:47]}
{[%emt 00:00:13]} Rxc8 {[%clk 00:02:08]} {[%emt 00:00:01]} 18. Bxf6 {[%clk
00:01:43]} {[%emt 00:00:06]} gxf6 {[%clk 00:02:05]} {[%emt 00:00:05]} 19. Qe3
{[%clk 00:01:35]} {[%emt 00:00:11]} Bh6 {[%clk 00:01:43]} {[%emt 00:00:24]} 20.
Qf3 {[%clk 00:01:21]} {[%emt 00:00:16]} Rf8 {[%clk 00:01:13]} {[%emt 00:00:32]}
21. Qf5 {[%clk 00:01:11]} {[%emt 00:00:12]} Qf7 {[%clk 00:01:06]} {[%emt
00:00:09]} 22. b3 {[%clk 00:01:03]} {[%emt 00:00:10]} Nc8 {[%clk 00:00:43]}
{[%emt 00:00:24]} 23. Rd7 {[%clk 00:00:59]} {[%emt 00:00:05]} Ne7 {[%clk
00:00:44]} {[%emt 00:00:01]} 24. Qh3 {[%clk 00:00:56]} {[%emt 00:00:05]} Bf4
{[%clk 00:00:29]} {[%emt 00:00:17]} 25. Red1 {[%clk 00:00:55]} {[%emt
00:00:03]} Rg8 {[%clk 00:00:23]} {[%emt 00:00:08]} 26. Rxe7 {[%clk 00:00:47]}
{[%emt 00:00:10]} Qxe7 {[%clk 00:00:21]} {[%emt 00:00:04]} 27. Rd7 {[%clk
00:00:48]} Rg7 {[%clk 00:00:18]} {[%emt 00:00:05]} 28. Rxe7 {[%clk 00:00:47]}
{[%emt 00:00:03]} Rxe7 {[%clk 00:00:19]} 29. g3 {[%clk 00:00:45]} {[%emt
00:00:05]} Bd2 {[%clk 00:00:17]} {[%emt 00:00:04]} 30. Qc8+ {[%clk 00:00:45]}
{[%emt 00:00:01]} Kg7 {[%clk 00:00:18]} {[%emt 00:00:01]} 31. Qd8 {[%clk
00:00:46]} 1-0

[Event "Paul Kerese Mälestusfestival 2022 Välkturniir"]
[Site "Paul Kerese Mälestusfestival 2022 Kiirturniir"]
[Date "????.??.??"]
[Round "11.4"]
[White "Bernotas, Arturs"]
[Black "Agafonov, Yuri"]
[Result "0-1"]
[TimeControl "3 min + 2 sek iga käigu eest"]
[WhiteTitle "FM"]
[WhiteElo "2382"]
[BlackElo "1913"]

1. e4 {[%clk 00:03:02]} g6 {[%clk 00:03:04]} {[%emt 00:00:01]} 2. h4 {[%clk
00:02:58]} {[%emt 00:00:05]} h6 {[%clk 00:03:03]} {[%emt 00:00:03]} 3. h5
{[%clk 00:02:57]} {[%emt 00:00:04]} g5 {[%clk 00:03:04]} 4. d4 {[%clk
00:02:57]} {[%emt 00:00:02]} d6 {[%clk 00:03:04]} 5. Nc3 {[%clk 00:02:52]}
{[%emt 00:00:06]} Bg7 {[%clk 00:03:03]} {[%emt 00:00:04]} 6. Be3 {[%clk
00:02:51]} {[%emt 00:00:02]} Nf6 {[%clk 00:02:56]} {[%emt 00:00:10]} 7. Be2
{[%clk 00:02:46]} {[%emt 00:00:07]} Nc6 {[%clk 00:02:55]} {[%emt 00:00:03]} 8.
Qd2 {[%clk 00:02:14]} {[%emt 00:00:33]} Ng4 {[%clk 00:02:43]} {[%emt 00:00:14]}
9. Bxg4 {[%clk 00:02:12]} {[%emt 00:00:04]} Bxg4 {[%clk 00:02:44]} {[%emt
00:00:01]} 10. f3 {[%clk 00:02:09]} {[%emt 00:00:05]} Bd7 {[%clk 00:02:44]}
{[%emt 00:00:02]} 11. Nge2 {[%clk 00:02:03]} {[%emt 00:00:08]} a6 {[%clk
00:02:43]} {[%emt 00:00:03]} 12. O-O-O {[%clk 00:01:49]} {[%emt 00:00:16]} b5
{[%clk 00:02:35]} {[%emt 00:00:11]} 13. f4 {[%clk 00:01:47]} {[%emt 00:00:03]}
b4 {[%clk 00:02:12]} {[%emt 00:00:26]} 14. Nd5 {[%clk 00:01:41]} {[%emt
00:00:08]} e6 {[%clk 00:02:00]} {[%emt 00:00:13]} 15. Nxb4 {[%clk 00:01:39]}
{[%emt 00:00:05]} gxf4 {[%clk 00:01:44]} {[%emt 00:00:19]} 16. Nxf4 {[%clk
00:01:32]} {[%emt 00:00:09]} Nxb4 {[%clk 00:01:35]} {[%emt 00:00:10]} 17. Qxb4
{[%clk 00:01:32]} {[%emt 00:00:02]} Rb8 {[%clk 00:01:36]} {[%emt 00:00:01]} 18.
Qa3 {[%clk 00:01:27]} {[%emt 00:00:07]} Qc8 {[%clk 00:01:31]} {[%emt 00:00:06]}
19. c3 {[%clk 00:01:12]} {[%emt 00:00:17]} Qb7 {[%clk 00:01:30]} {[%emt
00:00:03]} 20. d5 {[%clk 00:01:05]} {[%emt 00:00:09]} e5 {[%clk 00:01:12]}
{[%emt 00:00:20]} 21. Nd3 {[%clk 00:01:01]} {[%emt 00:00:06]} f5 {[%clk
00:01:11]} {[%emt 00:00:04]} 22. Rhf1 {[%clk 00:00:43]} {[%emt 00:00:20]} O-O
{[%clk 00:00:57]} {[%emt 00:00:16]} 23. exf5 {[%clk 00:00:20]} {[%emt
00:00:25]} Rxf5 {[%clk 00:00:51]} {[%emt 00:00:08]} 24. Rxf5 {[%clk 00:00:19]}
{[%emt 00:00:03]} Bxf5 {[%clk 00:00:53]} 25. Nb4 {[%clk 00:00:18]} {[%emt
00:00:03]} a5 {[%clk 00:00:50]} {[%emt 00:00:04]} 26. Nc6 {[%clk 00:00:16]}
{[%emt 00:00:04]} Re8 {[%clk 00:00:44]} {[%emt 00:00:08]} 27. Rf1 {[%clk
00:00:13]} {[%emt 00:00:05]} Be4 {[%clk 00:00:41]} {[%emt 00:00:04]} 28. Qxa5
{[%clk 00:00:08]} {[%emt 00:00:07]} Ra8 {[%clk 00:00:32]} {[%emt 00:00:11]} 29.
Qb4 {[%clk 00:00:09]} Qa6 {[%clk 00:00:23]} {[%emt 00:00:11]} 30. Rd1 {[%clk
00:00:09]} {[%emt 00:00:02]} Bh7 {[%clk 00:00:15]} {[%emt 00:00:10]} 31. a3
{[%clk 00:00:08]} {[%emt 00:00:04]} Qe2 {[%clk 00:00:14]} {[%emt 00:00:02]} 32.
Bd2 {[%clk 00:00:04]} {[%emt 00:00:06]} Qd3 {[%clk 00:00:14]} {[%emt 00:00:02]}
33. Ne7+ {[%emt 00:00:04]} Kh8 {[%emt 00:00:01]} 0-1

[Event "Paul Kerese Mälestusfestival 2022 Välkturniir"]
[Site "Paul Kerese Mälestusfestival 2022 Kiirturniir"]
[Date "????.??.??"]
[Round "11.5"]
[White "Mikko, Rondo"]
[Black "Golubovskis, Maksims"]
[Result "1-0"]
[TimeControl "3 min + 2 sek iga käigu eest"]
[WhiteElo "1933"]
[BlackElo "2163"]

1. Nf3 Nf6 2. g3 {[%clk 00:03:04]} {[%emt 00:00:02]} g6 {[%clk 00:03:06]} 3.
Bg2 Bg7 {[%emt 00:00:01]} 4. O-O {[%clk 00:03:05]} O-O {[%emt 00:00:06]} 5. c4
{[%clk 00:03:01]} {[%emt 00:00:03]} c5 {[%clk 00:03:06]} {[%emt 00:00:03]} 6.
Nc3 {[%clk 00:03:02]} {[%emt 00:00:02]} Nc6 {[%clk 00:03:07]} {[%emt 00:00:01]}
7. d3 {[%clk 00:03:02]} {[%emt 00:00:02]} d5 {[%clk 00:03:07]} {[%emt
00:00:02]} 8. cxd5 {[%clk 00:03:00]} {[%emt 00:00:04]} Nxd5 {[%clk 00:03:08]} 9.
Bd2 {[%clk 00:03:00]} Nc7 {[%clk 00:03:05]} {[%emt 00:00:04]} 10. a3 {[%clk
00:02:59]} {[%emt 00:00:04]} e5 {[%clk 00:03:03]} {[%emt 00:00:04]} 11. Qc2
{[%clk 00:03:00]} {[%emt 00:00:01]} Rb8 {[%clk 00:02:49]} {[%emt 00:00:16]} 12.
Ne4 {[%clk 00:02:25]} {[%emt 00:00:36]} Nd4 {[%clk 00:02:30]} {[%emt 00:00:21]}
13. Nxd4 {[%clk 00:02:22]} {[%emt 00:00:05]} cxd4 {[%clk 00:02:31]} 14. Bb4
{[%clk 00:02:17]} {[%emt 00:00:07]} Re8 {[%clk 00:02:28]} {[%emt 00:00:05]} 15.
Nd6 {[%clk 00:01:36]} {[%emt 00:00:43]} Re6 {[%clk 00:02:30]} 16. Nxc8 {[%clk
00:01:36]} {[%emt 00:00:01]} Rxc8 {[%clk 00:02:21]} {[%emt 00:00:11]} 17. Bxb7
{[%clk 00:01:37]} {[%emt 00:00:01]} Rb8 {[%clk 00:02:22]} 18. Bg2 {[%clk
00:01:34]} {[%emt 00:00:04]} Na6 {[%clk 00:02:22]} {[%emt 00:00:03]} 19. Bd2
{[%clk 00:01:31]} {[%emt 00:00:04]} Reb6 {[%clk 00:02:20]} {[%emt 00:00:05]} 20.
b4 {[%clk 00:01:30]} {[%emt 00:00:02]} Rc8 {[%clk 00:02:14]} {[%emt 00:00:08]}
21. Qa2 {[%clk 00:01:20]} {[%emt 00:00:12]} Nc7 {[%clk 00:01:31]} {[%emt
00:00:45]} 22. Rac1 {[%emt 00:00:02]} Nb5 23. Rxc8 {[%clk 00:01:18]} {[%emt
00:00:04]} Qxc8 {[%clk 00:01:35]} 24. Rc1 {[%clk 00:01:18]} {[%emt 00:00:01]}
Qd8 {[%clk 00:01:21]} {[%emt 00:00:17]} 25. Qb3 {[%clk 00:01:10]} {[%emt
00:00:09]} Rb8 {[%clk 00:01:01]} {[%emt 00:00:22]} 26. a4 {[%clk 00:01:02]}
{[%emt 00:00:09]} Nc3 {[%clk 00:00:58]} {[%emt 00:00:05]} 27. Bxc3 {[%emt
00:00:06]} dxc3 {[%emt 00:00:01]} 28. Rxc3 {[%clk 00:00:37]} {[%emt 00:00:23]}
e4 {[%clk 00:01:01]} 29. Rc4 {[%clk 00:00:34]} {[%emt 00:00:05]} exd3 {[%clk
00:01:03]} 30. Qxd3 {[%clk 00:00:35]} {[%emt 00:00:01]} Qe8 {[%clk 00:01:02]}
{[%emt 00:00:03]} 31. Bc6 {[%clk 00:00:28]} {[%emt 00:00:08]} Qe5 {[%clk
00:01:02]} {[%emt 00:00:01]} 32. Kg2 {[%clk 00:00:25]} {[%emt 00:00:05]} h5
{[%clk 00:01:01]} {[%emt 00:00:03]} 33. Re4 {[%clk 00:00:22]} {[%emt 00:00:04]}
Qc7 {[%clk 00:00:53]} {[%emt 00:00:10]} 34. Qd7 {[%clk 00:00:22]} {[%emt
00:00:02]} Qb6 {[%clk 00:00:41]} {[%emt 00:00:15]} 35. Re8+ {[%clk 00:00:20]}
{[%emt 00:00:03]} Rxe8 {[%clk 00:00:43]} 36. Qxe8+ {[%clk 00:00:21]} Kh7 {[%clk
00:00:39]} {[%emt 00:00:06]} 37. b5 {[%clk 00:00:20]} {[%emt 00:00:02]} Qc7
{[%clk 00:00:29]} {[%emt 00:00:12]} 38. Bd5 {[%clk 00:00:21]} f5 {[%clk
00:00:27]} {[%emt 00:00:04]} 39. e4 {[%clk 00:00:23]} Qd6 {[%clk 00:00:20]}
{[%emt 00:00:10]} 40. Qf7 {[%clk 00:00:22]} {[%emt 00:00:02]} fxe4 {[%clk
00:00:15]} {[%emt 00:00:07]} 41. Bxe4 {[%clk 00:00:24]} Kh6 {[%clk 00:00:09]}
{[%emt 00:00:07]} 42. a5 {[%clk 00:00:25]} Bd4 {[%clk 00:00:08]} {[%emt
00:00:03]} 43. b6 {[%clk 00:00:22]} {[%emt 00:00:05]} axb6 {[%clk 00:00:07]}
{[%emt 00:00:03]} 44. a6 {[%clk 00:00:24]} b5 {[%clk 00:00:04]} {[%emt
00:00:04]} 45. a7 {[%clk 00:00:24]} {[%emt 00:00:01]} Bxa7 {[%clk 00:00:03]}
{[%emt 00:00:04]} 46. Qxa7 {[%clk 00:00:26]} b4 {[%clk 00:00:03]} {[%emt
00:00:02]} 47. Qb7 {[%clk 00:00:23]} {[%emt 00:00:04]} Qc5 {[%clk 00:00:04]}
{[%emt 00:00:01]} 48. Qc6 {[%clk 00:00:24]} {[%emt 00:00:01]} Qg5 {[%clk
00:00:03]} {[%emt 00:00:03]} 49. h4 {[%clk 00:00:24]} {[%emt 00:00:02]} Qg4
{[%clk 00:00:05]} 50. f3 {[%clk 00:00:24]} {[%emt 00:00:02]} 1-0